bitfinex-derivatives/quotes_ETHF0:USTF0_20250323
["timestamp","ask_amount","ask_price","bid_price","bid_amount"]
[1742708545365,3.19335168,1996.3,1996.2,2.7047]
[1742708545958,4.19538168,1996.3,1996.2,2.7047]
[1742708549163,3.19335168,1996.3,1996.2,2.7047]
[1742708549572,4.19538168,1996.3,1996.2,2.7047]
[1742708551770,3.19335168,1996.3,1996.2,2.7047]
[1742708552973,4.19538168,1996.3,1996.2,2.7047]
[1742708553170,3.19335168,1996.3,1996.2,2.7047]
[1742708560273,4.4815,1996.3,1996.2,2.7047]
[1742708560469,5.36903914,1996.3,1996.2,2.7047]
[1742708560670,6.40115168,1996.3,1996.2,2.7047]
[1742708562170,1.03211254,1996.3,1996.2,3.70678]
[1742708562475,4.23991254,1996.3,1996.2,2.7047]
[1742708562682,3.2078,1996.3,1996.2,2.7047]
[1742708563078,4.09620068,1996.3,1996.2,2.7047]
[1742708563282,6.48333068,1996.3,1996.2,2.7047]
[1742708563677,7.51544322,1996.3,1996.2,2.7047]
[1742708564083,7.51544322,1996.3,1996.2,1.3688]
[1742708569786,1.00222,1996.0,1995.8,0.00751654]
[1742708570086,4.21002,1996.0,1995.9,1.3352]
[1742708570384,3.2078,1996.0,1995.9,1.3352]
[1742708570988,4.20998,1996.0,1995.9,1.3352]
[1742708571583,3.2078,1996.0,1995.9,1.3352]
[1742708572892,4.20998,1996.0,1995.9,1.3352]
[1742708579093,1.00218,1996.0,1995.9,1.3352]
[1742708579586,4.20998,1996.0,1995.9,1.3352]
[1742708580189,5.24209254,1996.0,1995.9,1.3352]
[1742708581189,4.20998,1996.0,1995.9,1.3352]
[1742708583386,5.71329,1996.0,1995.3,3.2078]
[1742708583585,1.0024,1995.6,1995.4,2.5528]
[1742708583785,1.0024,1995.6,1995.5,1.2791]
[1742708584791,3.26609499,1995.6,1995.5,1.2791]
[1742708585092,4.29820753,1995.6,1995.5,1.2791]
[1742708585994,5.65310753,1995.6,1995.5,1.2791]
[1742708586188,4.76651254,1995.6,1995.5,1.2791]
[1742708587794,1.00243,1995.5,1995.4,0.00751654]
[1742708587997,5.54003,1995.5,1995.4,1.33231654]
[1742708591692,5.54003,1995.5,1993.6,51.72969136]
[1742708591693,1.0026,1995.2,1995.0,2.674]
[1742708591890,1.0026,1995.2,1995.1,1.3822]
[1742708592092,4.2104,1995.2,1995.1,1.3822]
[1742708592685,5.5187,1995.2,1995.1,1.3822]
[1742708601402,2.3109,1995.2,1995.1,1.3822]
[1742708601703,5.5187,1995.2,1995.1,1.3822]
[1742708602492,4.5161,1995.2,1995.1,1.3822]
[1742708602696,5.51868,1995.2,1995.1,1.3822]
[1742708605706,4.5161,1995.2,1995.1,1.3822]
[1742708605909,5.51868,1995.2,1995.1,1.3822]
[1742708612405,6.54973159,1995.2,1995.1,1.3822]
[1742708614102,7.43644411,1995.2,1995.1,1.3822]
[1742708616303,6.43386411,1995.2,1995.1,1.3822]
[1742708616807,7.43644411,1995.2,1995.1,1.3822]
[1742708622313,6.43386411,1995.2,1995.1,1.3822]
[1742708622706,7.43644411,1995.2,1995.1,1.3822]
[1742708625414,6.43386411,1995.2,1995.1,1.3822]
[1742708625616,7.43644411,1995.2,1995.1,1.3822]
[1742708629107,6.43386411,1995.2,1994.5,3.2078]
[1742708629312,3.2078,1994.8,1994.7,1.3085]
[1742708630115,4.23885159,1994.8,1994.7,1.3085]
[1742708630317,5.63375159,1994.8,1994.7,1.3085]
[1742708630711,5.63375159,1994.8,1994.7,2.31133]
[1742708631018,5.63375159,1994.8,1994.7,1.3085]
[1742708631411,4.6027,1994.8,1994.7,1.3085]
[1742708631716,4.89933,1995.0,1994.7,1.3085]
[1742708631911,2.3823665,1994.9,1994.7,1.3085]
[1742708632113,3.3850965,1994.9,1994.7,1.3085]
[1742708632411,3.3850965,1994.9,1994.8,1.3567]
[1742708633717,2.3823665,1994.9,1994.8,1.3567]
[1742708634017,3.3850965,1994.9,1994.8,1.3567]
[1742708639118,2.3823665,1994.9,1994.8,1.3567]
[1742708639319,3.3850965,1994.9,1994.8,1.3567]
[1742708641628,6.5928965,1994.9,1994.8,1.3567]
[1742708645019,5.5901665,1994.9,1994.8,1.3567]
[1742708645420,6.5928965,1994.9,1994.8,1.3567]
[1742708645825,5.5901665,1994.9,1994.8,1.3567]
[1742708646026,5.55923,1994.9,1994.8,1.3567]
[1742708646421,4.5565,1994.9,1994.8,1.3567]
[1742708647927,5.55923,1994.9,1994.8,1.3567]
[1742708648323,4.5565,1994.9,1994.8,1.3567]
[1742708648526,5.58959787,1994.9,1994.8,1.3567]
[1742708649229,6.59232787,1994.9,1994.8,1.3567]
[1742708649831,1.00283,1994.7,1994.6,0.00751654]
[1742708650029,4.21063,1994.7,1994.6,0.00751654]
[1742708650226,5.09808036,1994.7,1994.6,0.00751654]
[1742708650423,7.17488036,1994.7,1994.6,0.00751654]
[1742708650629,8.20797823,1994.7,1994.6,0.00751654]
[1742708656234,7.32052787,1994.7,1994.6,0.00751654]
[1742708656631,6.28743,1994.7,1994.6,0.00751654]
[1742708673334,6.28743,1994.7,1994.6,1.30451654]
[1742708681042,5.2846,1994.7,1994.3,0.681]
[1742708681345,4.21078,1994.4,1994.3,0.681]
[1742708681534,1.00306,1994.3,1993.9,46.34]
[1742708681739,3.2078,1994.2,1993.9,47.34323]
[1742708682345,3.21531654,1994.2,1993.9,47.35074654]
[1742708682647,3.21531654,1994.2,1993.9,47.35073654]
[1742708683646,3.21531654,1994.2,1993.9,46.34751654]
[1742708683835,3.21531654,1994.2,1993.9,47.35072654]
[1742708684238,3.21531654,1994.2,1994.0,2.0744]
[1742708684544,3.21531654,1994.2,1994.1,1.3758]
[1742708684747,3.21531654,1994.2,1994.1,2.072]
[1742708686744,4.21839654,1994.2,1994.1,2.072]
[1742708695654,0.00751654,1994.2,1994.1,3.07513]
[1742708696555,0.00751654,1994.2,1994.1,2.072]
[1742708696963,0.00751654,1994.2,1994.1,3.07513]
[1742708700664,0.00751654,1994.2,1994.1,2.072]
[1742708701951,3.21531654,1994.2,1994.1,2.072]
[1742708704965,0.00751654,1994.2,1994.1,2.072]
[1742708705155,3.21531654,1994.2,1994.1,2.072]
[1742708705761,0.00751654,1994.2,1994.1,2.072]
[1742708706069,3.21531654,1994.2,1994.1,2.072]
[1742708706768,0.00751654,1994.2,1994.1,3.07513]
[1742708706969,0.00751654,1994.2,1994.1,2.072]
[1742708709071,0.00751654,1994.2,1994.1,3.07513]
[1742708710079,0.00751654,1994.2,1994.1,2.072]
[1742708712282,1.36831654,1994.2,1994.1,2.072]
[1742708717781,2.40255156,1994.2,1994.1,2.072]
[1742708718192,1.36831654,1994.2,1994.1,2.072]
[1742708719082,2.4025434,1994.2,1994.1,2.072]
[1742708719689,1.36831654,1994.2,1994.1,2.072]
[1742708721087,1.36831654,1994.2,1994.1,3.07513]
[1742708721278,1.36831654,1994.2,1994.1,2.072]
[1742708725198,1.36831654,1994.2,1994.1,3.07513]
[1742708725996,1.36831654,1994.2,1994.1,2.072]
[1742708727095,1.36831654,1994.2,1994.1,3.07513]
[1742708727287,1.36831654,1994.2,1994.1,2.072]
[1742708727804,2.40279306,1994.2,1994.1,2.072]
[1742708728492,3.2078,1995.4,1994.5,2.50734]
[1742708728692,3.2078,1995.4,1994.9,3.2078]
[1742708728693,0.6347,1995.3,1994.9,3.2078]
[1742708728895,1.355,1995.3,1995.2,1.00258]
[1742708729097,1.355,1995.3,1995.1,1.00261]
[1742708729297,1.355,1995.3,1995.2,1.91073183]
[1742708729502,1.355,1995.3,1995.2,1.3698]
[1742708729893,0.00751654,1995.4,1995.2,4.5776]
[1742708730190,0.00751654,1995.4,1995.2,2.37234]
[1742708732000,0.00751654,1995.4,1995.3,1.00253]
[1742708733007,0.00751654,1995.4,1995.2,2.37235]
[1742708733501,1.31581654,1995.4,1995.3,1.00253]
[1742708739605,0.00751654,1995.4,1995.3,1.00253]
[1742708741095,0.00751654,1995.4,1995.3,2.29743]
[1742708744301,0.00751654,1995.4,1995.3,2.96383]
[1742708746007,0.00751654,1995.4,1994.5,49.5618]
[1742708746008,2.50636,1995.3,1994.5,49.5618]
[1742708746213,3.2078,1994.8,1994.5,48.74392]
[1742708746506,3.70725,1994.7,1994.5,47.3569]
[1742708746709,1.3398,1994.6,1994.5,47.3569]
[1742708749704,1.3398,1994.6,1994.5,46.354]
[1742708750107,1.3398,1994.6,1994.5,47.35693]
[1742708750315,1.3398,1994.6,1994.5,46.354]
[1742708750509,1.3398,1994.6,1994.5,47.35693]
[1742708751407,3.2078,1994.8,1994.5,46.354]
[1742708751611,1.3635,1995.0,1994.9,1.00273]
[1742708754905,1.3635,1995.0,1994.9,4.21053]
[1742708755601,1.3635,1995.0,1994.9,5.59843]
[1742708756413,1.3635,1995.0,1994.9,2.39063]
[1742708762812,2.36621,1995.0,1994.7,0.66]
[1742708763012,2.36621,1995.0,1994.8,1.00275]
[1742708763013,1.3527,1994.9,1994.8,1.00275]
[1742708763213,2.6301,1994.9,1994.8,1.00275]
[1742708763715,2.6301,1994.9,1994.8,2.29935]
[1742708764116,2.6301,1994.9,1994.7,1.66279]
[1742708764315,1.2774,1994.8,1994.7,1.00283]
[1742708764818,2.28018,1994.8,1994.7,1.00283]
[1742708765120,1.2774,1994.8,1994.7,1.00283]
[1742708766214,1.2774,1994.8,1994.7,4.21063]
[1742708770019,0.6558,1995.2,1994.8,2.50696]
[1742708770323,1.65841,1995.2,1995.0,1.00264]
[1742708770515,1.65841,1995.2,1995.1,1.2828]
[1742708770711,1.65841,1995.2,1995.1,2.28543]
[1742708771121,0.6558,1995.2,1995.1,2.28543]
[1742708772019,0.6432,1995.3,1995.2,1.00258]
[1742708772328,0.6432,1995.3,1995.2,2.36078]
[1742708775320,1.9184,1995.3,1995.2,2.36078]
[1742708776714,1.9184,1995.3,1995.2,1.3582]
[1742708779819,2.92725849,1995.3,1995.2,1.3582]
[1742708780832,3.92978849,1995.3,1995.2,1.3582]
[1742708781433,1.00258,1995.2,1995.0,3.8625]
[1742708781630,0.6417,1995.2,1995.1,1.3841]
[1742708792835,3.2078,1995.8,1995.1,5.13219204]
[1742708793043,4.90119,1995.8,1995.4,3.2078]
[1742708793236,0.88737207,1995.7,1995.5,3.65442]
[1742708793541,0.6911,1995.8,1995.6,1.3636]
[1742708795654,1.69338,1995.8,1995.6,1.3636]
[1742708795852,0.6911,1995.8,1995.6,1.3636]
[1742708796153,1.2731,1995.7,1995.6,1.3636]
[1742708796542,1.2731,1995.7,1995.6,2.36598]
[1742708796740,1.2731,1995.7,1995.6,1.3636]
[1742708796955,1.2731,1995.7,1995.6,2.36598]
[1742708797153,1.2731,1995.7,1995.6,1.3636]
[1742708798146,1.2731,1995.7,1995.6,2.36598]
[1742708798447,1.2731,1995.7,1995.6,1.3636]
[1742708800250,1.2731,1995.7,1995.6,2.36598]
[1742708800451,1.2731,1995.7,1995.6,1.3636]
[1742708801251,1.2731,1995.7,1995.5,2.29831654]
[1742708801252,1.00238,1995.6,1995.5,0.00751654]
[1742708801443,1.00258,1995.2,1995.1,1.3011]
[1742708802358,3.03197,1995.3,1995.1,1.3011]
[1742708802658,1.3838,1995.2,1995.1,1.3011]
[1742708803357,2.38638,1995.2,1995.1,1.3011]
[1742708803555,1.3838,1995.2,1995.1,1.3011]
[1742708806157,4.5916,1995.2,1995.1,1.3011]
[1742708806847,1.2703,1995.6,1995.1,4.5089]
[1742708807052,1.00252,1995.4,1995.1,1.3011]
[1742708807348,1.9394,1995.3,1995.0,1.01016654]
[1742708807654,1.2703,1995.2,1995.0,1.01016654]
[1742708807859,1.2703,1995.2,1995.0,0.00751654]
[1742708807860,1.9449,1995.2,1995.0,0.00751654]
[1742708808047,1.9449,1995.2,1995.0,1.01018654]
[1742708808251,1.2703,1995.1,1995.0,1.01018654]
[1742708808856,1.2703,1995.1,1995.0,0.00751654]
[1742708811563,2.27293,1995.1,1995.0,0.00751654]
[1742708811762,1.2703,1995.1,1995.0,0.00751654]
[1742708812457,2.27293,1995.1,1995.0,0.00751654]
[1742708812961,1.2703,1995.1,1995.0,0.00751654]
[1742708813461,2.27293,1995.1,1995.0,0.00751654]
[1742708816357,0.6691,1995.3,1995.0,0.00751654]
[1742708816561,1.984,1995.3,1995.0,0.00751654]
[1742708816755,1.984,1995.3,1995.1,1.00261]
[1742708816756,2.98655,1995.3,1995.1,1.00261]
[1742708816959,1.3149,1995.2,1995.1,1.00261]
[1742708824964,0.98534308,1995.7,1995.5,1.00239]
[1742708825168,1.397,1995.6,1995.5,4.21019]
[1742708825765,1.397,1995.6,1995.5,3.2078]
[1742708825970,1.397,1995.6,1995.4,1.00244]
[1742708826269,0.99306787,1995.9,1995.8,1.00228]
[1742708826568,0.99306787,1995.9,1995.8,4.21008]
[1742708826968,0.00751654,1995.9,1995.8,4.21008]
[1742708827271,0.00751654,1995.9,1995.8,5.57158]
[1742708835574,1.67396,1996.3,1996.0,1.00216]
[1742708835772,1.3721,1996.1,1996.0,1.00218]
[1742708836171,6.37743,1996.1,1995.2,0.5016]
[1742708836381,5.73492137,1996.0,1995.1,4.5581]
[1742708836687,1.00988654,1995.7,1995.3,1.00251]
[1742708836871,1.66358,1995.6,1995.3,1.00251]
[1742708837068,1.66358,1995.6,1995.1,4.5581]
[1742708837069,1.3614,1995.5,1995.1,4.5581]
[1742708837269,2.36387,1995.5,1995.1,2.35292]
[1742708837877,2.36387,1995.5,1995.1,1.3503]
[1742708838078,2.36387,1995.5,1995.2,1.00258]
[1742708838380,2.36385,1995.5,1995.1,1.3503]
[1742708838587,2.36385,1995.5,1995.1,2.35291]
[1742708838784,2.36385,1995.5,1995.2,1.00258]
[1742708839283,5.57165,1995.5,1995.2,1.00258]
[1742708839582,0.6961,1995.4,1995.2,1.00258]
[1742708839883,1.3202,1995.3,1995.2,1.00258]
[1742708840380,1.3202,1995.3,1995.1,1.3503]
[1742708840582,1.3202,1995.3,1995.1,2.3529]
[1742708841478,1.3202,1995.3,1995.1,1.3503]
[1742708841683,1.3202,1995.3,1995.1,2.35292]
[1742708842385,1.3202,1995.3,1995.1,2.35289]
[1742708843085,1.3202,1995.3,1995.1,1.3503]
[1742708843491,1.3202,1995.3,1995.1,0.6568]
[1742708843673,1.00258,1995.2,1995.0,0.00751654]
[1742708843879,1.2762,1995.1,1995.0,0.00751654]
[1742708845186,1.2762,1995.1,1995.0,1.01019654]
[1742708845580,1.2762,1995.1,1995.0,0.00751654]
[1742708845985,1.2762,1995.1,1995.0,1.34791654]
[1742708848187,1.2762,1995.1,1995.0,2.35059654]
[1742708849088,0.00751654,1995.7,1995.6,1.00238]
[1742708849290,1.269,1996.1,1996.0,1.00215]
[1742708849479,1.269,1996.1,1995.7,2.50579]
[1742708849480,1.269,1996.1,1995.8,3.2078]
[1742708849680,1.269,1996.1,1995.9,2.95809]
[1742708852796,1.269,1996.1,1995.8,0.00751654]
[1742708852987,1.64302,1996.0,1995.8,0.00751654]
[1742708853188,1.2949,1995.9,1995.8,0.00751654]
[1742708853385,2.29713,1995.9,1995.8,0.00751654]
[1742708853788,1.2949,1995.9,1995.8,0.00751654]
[1742708854493,2.29713,1995.9,1995.8,0.00751654]
[1742708855295,1.2949,1995.9,1995.8,0.00751654]
[1742708858693,0.00751654,1996.2,1995.8,12.30351654]
[1742708858893,1.3437,1997.0,1996.8,1.00174]
[1742708859098,1.3437,1997.0,1996.8,3.2078]
[1742708859300,1.3437,1997.2,1996.9,1.384]
[1742708859495,1.00165,1997.1,1996.9,1.384]
[1742708859697,1.3437,1997.0,1996.9,2.38573]
[1742708859896,1.3437,1997.0,1996.9,1.384]
[1742708861992,1.3437,1997.0,1996.9,2.38573]
[1742708862195,0.00751654,1997.2,1996.9,1.384]
[1742708862396,0.00751654,1997.2,1997.1,1.00163]
[1742708862803,0.00751654,1997.2,1997.1,2.38633]
[1742708865002,1.00158,1997.2,1997.0,3.2078]
[1742708865195,2.37513,1997.1,1996.9,1.3818]
[1742708865798,1.3735,1997.1,1996.9,1.3818]
[1742708865996,2.37514,1997.1,1996.9,1.3818]
[1742708867193,1.3735,1997.1,1996.9,2.38351]
[1742708867998,1.3735,1997.1,1996.9,1.3818]
[1742708868209,1.3735,1997.1,1996.9,2.38352]
[1742708869303,1.3735,1997.1,1996.9,2.38349]
[1742708871701,1.3735,1997.1,1996.9,1.3818]
[1742708871907,1.3735,1997.1,1996.9,2.38351]
[1742708872509,1.3735,1997.1,1997.0,1.00168]
[1742708872701,1.3735,1997.1,1997.0,1.3139]
[1742708874112,3.19718,1997.6,1997.0,1.3139]
[1742708874113,2.50296,1998.0,1997.0,50.8157]
[1742708874308,1.3018,1997.5,1997.0,50.8157]
[1742708874507,0.6503,1997.4,1997.0,50.8157]
[1742708874704,2.30334,1997.3,1997.0,51.81736]
[1742708876408,2.50315,1997.9,1997.0,51.81736]
[1742708876409,3.2078,1998.2,1997.2,3.2078]
[1742708876711,3.2078,1998.2,1997.4,1.00146]
[1742708876712,2.39171,1997.8,1997.4,1.00146]
[1742708876916,1.69923,1997.7,1997.5,1.3819]
[1742708877104,1.3904,1997.6,1997.5,1.3819]
[1742708877304,0.6979,1997.7,1997.5,4.5897]
[1742708877805,0.6979,1997.7,1997.5,5.59111]
[1742708878006,0.6979,1997.7,1997.5,1.3819]
[1742708878312,0.6979,1997.7,1997.5,2.38331]
[1742708879407,0.6979,1997.7,1997.5,1.3819]
[1742708879808,0.6979,1997.7,1997.5,2.38332]
[1742708880516,1.9801,1997.7,1997.5,2.38332]
[1742708880710,1.9801,1997.7,1997.6,1.00138]
[1742708880912,1.9801,1997.7,1997.5,5.59109]
[1742708881905,1.9801,1997.7,1997.6,1.00138]
[1742708882211,1.00124,1997.9,1997.6,1.00136]
[1742708882415,1.00124,1997.9,1997.7,1.265]
[1742708882914,2.29114,1997.9,1997.7,1.265]
[1742708886619,1.2975,1997.8,1997.7,1.265]
[1742708888418,2.29878,1997.8,1997.7,1.265]
[1742708888620,1.2975,1997.8,1997.7,1.265]
[1742708888815,2.29878,1997.8,1997.7,1.265]
[1742708890512,1.2975,1997.8,1997.2,3.2078]
[1742708890713,1.0014,1997.6,1997.3,2.36151]
[1742708890913,1.2757,1997.5,1997.4,1.36]
[1742708891112,1.2757,1997.5,1997.4,2.36148]
[1742708891423,1.2757,1997.5,1997.4,5.56928]
[1742708891618,1.3398,1997.7,1997.4,5.56928]
[1742708891819,1.3398,1997.7,1997.5,2.5979]
[1742708892120,1.3398,1997.7,1997.6,1.2656]
[1742708893518,2.34113,1997.7,1997.6,1.2656]
[1742708895113,1.3398,1997.7,1997.6,1.2656]
[1742708895422,2.34113,1997.7,1997.6,1.2656]
[1742708895911,1.3398,1997.7,1997.6,1.2656]
[1742708896923,3.8819,1998.1,1997.6,5.47476]
[1742708897119,1.00125,1997.9,1997.6,5.47476]
[1742708897315,1.00125,1997.9,1997.7,1.3183]
[1742708897516,1.3023,1997.8,1997.7,1.3183]
[1742708901324,2.67703995,1998.0,1997.7,1.3183]
[1742708901515,4.03063995,1998.0,1997.7,1.3183]
[1742708901717,3.02944995,1998.0,1997.7,2.3196]
[1742708901925,3.2078,1998.6,1997.9,3.2078]
[1742708902119,3.2078,1999.0,1998.9,1.00073]
[1742708902720,3.2078,1999.0,1998.7,2.6519]
[1742708902922,1.00078,1998.8,1998.7,2.6519]
[1742708903122,3.2078,1999.0,1998.7,2.6519]
[1742708903527,3.2078,1999.0,1998.7,3.65271]
[1742708904331,3.2078,1999.0,1998.7,3.65269]
[1742708905128,4.20848,1999.0,1998.7,3.65269]
[1742708905330,1.00073,1998.9,1998.7,2.6519]
[1742708905628,1.349,1998.9,1998.7,2.6519]
[1742708905828,1.349,1998.9,1998.7,3.65272]
[1742708907423,1.349,1998.9,1998.7,2.6519]
[1742708907627,2.0273,1998.9,1998.2,0.683]
[1742708907828,1.00083,1998.7,1998.5,1.2937]
[1742708908026,1.3824,1998.6,1998.5,1.2937]
[1742708908921,0.644,1998.8,1998.5,1.2937]
[1742708909121,1.00084,1998.7,1998.5,4.5015]
[1742708909320,1.3824,1998.8,1998.5,5.5024]
[1742708910329,2.38318,1998.8,1998.5,5.5024]
[1742708910730,2.38318,1998.8,1998.5,4.5015]
[1742708910934,2.38318,1998.8,1998.5,5.50242]
[1742708911529,2.38318,1998.8,1998.6,1.3827]
[1742708912026,1.3824,1998.8,1998.6,1.3827]
[1742708912836,0.6783,1998.9,1998.6,2.38354]
[1742708913025,1.67904,1998.9,1998.6,2.38354]
[1742708913227,2.0284,1998.9,1998.7,1.372]
[1742708913733,3.02914,1998.9,1998.7,1.372]
[1742708913928,1.3501,1998.8,1998.7,1.372]
[1742708914334,3.2078,1999.3,1998.7,4.5798]
[1742708914534,1.3501,1999.2,1998.7,5.2624]
[1742708914832,2.35069,1999.2,1998.8,2.37278]
[1742708915033,2.35069,1999.2,1998.7,3.8904]
[1742708915034,2.35068,1999.2,1998.9,2.37269]
[1742708915235,2.35068,1999.2,1999.0,1.372]
[1742708915842,3.9097,1999.3,1999.0,2.37266]
[1742708915843,4.91025,1999.3,1999.0,2.37266]
[1742708916031,1.00059,1999.2,1999.0,1.372]
[1742708916329,2.29769,1999.2,1999.1,1.3095]
[1742708916730,1.2971,1999.2,1999.1,1.3095]
[1742708917130,11.65256,1999.8,1999.1,1.3095]
[1742708917131,3.2078,2000.0,1999.2,2.50145]
[1742708917429,1.2971,1999.7,1999.4,1.00044]
[1742708917636,2.29743,1999.7,1999.5,1.3095]
[1742708917839,1.2971,1999.7,1999.5,1.3095]
[1742708918028,1.2971,1999.6,1999.5,1.3095]
[1742708918335,1.00029,1999.8,1999.5,2.30989]
[1742708918525,2.29739,1999.8,1999.6,1.3095]
[1742708919137,1.00033,1999.7,1999.6,1.3095]
[1742708919335,2.37213,1999.7,1999.6,1.3095]
[1742708919536,1.00043,1999.5,1999.4,0.00751654]
[1742708920934,2.37223,1999.5,1999.4,1.29531654]
[1742708921240,1.3718,1999.5,1999.4,1.29531654]
[1742708922635,2.37223,1999.5,1999.4,1.29531654]
[1742708922830,0.6362,1999.6,1999.5,1.00043]
[1742708923036,0.6362,1999.6,1999.4,2.29576654]
[1742708923236,0.6362,1999.6,1999.4,1.29531654]
[1742708923439,3.00211,1999.6,1999.5,1.3217]
[1742708925935,2.0017,1999.6,1999.5,1.3217]
[1742708926745,3.00208,1999.6,1999.5,1.3217]
[1742708929342,0.7019,1999.9,1999.5,1.3217]
[1742708929652,3.2078,2000.1,1999.7,4.20811]
[1742708929653,1.00019,2000.0,1999.7,4.20811]
[1742708929846,2.30419,2000.0,1999.8,1.3008]
[1742708930342,1.304,2000.0,1999.8,1.3008]
[1742708930641,1.304,2000.0,1999.8,2.30107]
[1742708930840,0.6693,2000.2,1999.8,1.3008]
[1742708930841,3.2078,2000.2,1999.8,1.3008]
[1742708931145,4.20789,2000.2,1999.9,1.3457]
[1742708931347,4.20789,2000.2,2000.0,0.6547]
[1742708931547,1.3911,2000.1,2000.0,0.6547]
[1742708931747,1.3911,2000.4,2000.0,0.6547]
[1742708931942,5.5989,2000.4,2000.0,0.6547]
[1742708932146,1.00003,2000.3,2000.0,1.65486]
[1742708932344,2.39113,2000.3,2000.0,1.65486]
[1742708932544,2.39113,2000.3,2000.0,2.34336]
[1742708933841,1.3911,2000.3,2000.0,1.3432]
[1742708934042,1.3911,2000.3,2000.1,4.2079]
[1742708934449,1.3911,2000.3,2000.1,1.00009]
[1742708935047,1.3911,2000.3,2000.0,1.3432]
[1742708935548,2.39113,2000.3,2000.0,1.3432]
[1742708935751,1.3911,2000.3,2000.0,2.34333]
[1742708936043,1.3911,2000.3,2000.0,1.3432]
[1742708936346,1.3911,2000.3,2000.1,1.00012]
[1742708936547,2.39113,2000.3,2000.0,2.34334]
[1742708937736,0.6925,2000.5,1999.7,3.2078]
[1742708937737,1.3876,2000.2,1999.7,3.2078]
[1742708937941,3.9029,2000.1,1999.6,2.38025]
[1742708938151,1.00025,1999.9,1999.6,2.38025]
[1742708938452,1.00028,1999.8,1999.6,1.3799]
[1742708939150,1.3876,2000.0,1999.6,2.38026]
[1742708939151,1.00026,1999.9,1999.6,2.38026]
[1742708939345,1.3876,1999.8,1999.7,1.00033]
[1742708939538,2.38786,1999.9,1999.7,1.00033]
[1742708940452,2.38786,1999.9,1999.6,2.38024]
[1742708941149,1.3876,1999.9,1999.7,1.00029]
[1742708941352,2.38786,1999.9,1999.6,2.38024]
[1742708941855,1.00028,1999.8,1999.6,1.3799]
[1742708942148,2.38786,1999.9,1999.7,1.00031]
[1742708942556,1.00026,1999.9,1999.7,1.00031]
[1742708942854,1.00026,1999.9,1999.6,1.3799]
[1742708942855,1.00028,1999.8,1999.6,2.38024]
[1742708943054,2.35868,1999.8,1999.6,2.38024]
[1742708944450,2.35868,1999.8,1999.6,1.3799]
[1742708944653,1.00018,2000.0,1999.6,1.3799]
[1742708944849,6.26145,2000.1,1999.9,1.0002]
[1742708945051,1.00018,2000.0,1999.8,1.00024]
[1742708945852,1.3584,2000.0,1999.8,1.00024]
[1742708946148,1.3584,2000.0,1999.9,1.3263]
[1742708947354,1.3584,2000.0,1999.9,2.32653]
[1742708947655,1.3584,2000.0,1999.9,1.3263]
[1742708948755,1.3584,2000.0,1999.9,2.32653]
[1742708948957,1.3584,2000.0,1999.9,1.3263]
[1742708949756,1.3584,2000.0,1999.9,2.32653]
[1742708950055,1.3584,2000.0,1999.9,1.3263]
[1742708950247,1.3584,2000.0,1999.9,2.32653]
[1742708950852,1.3584,2000.0,1999.9,1.3263]
[1742708951647,1.3584,2000.0,1999.9,2.32653]
[1742708951848,1.3584,2000.0,1999.9,1.3263]
[1742708952048,1.3584,2000.0,1999.9,2.32653]
[1742708952256,1.3584,2000.0,1999.9,1.3263]
[1742708953053,0.6951,2000.1,1999.9,2.32653]
[1742708953258,0.6951,2000.1,2000.0,0.6385]
[1742708953259,1.9992,2000.1,2000.0,0.6385]
[1742708953450,1.9992,2000.1,2000.0,1.9438]
[1742708954855,0.88744187,2000.4,2000.0,1.9438]
[1742708955057,1.3041,2000.3,2000.1,1.3053]
[1742708955363,2.30414,2000.3,2000.1,1.3053]
[1742708955547,1.3041,2000.3,2000.1,1.3053]
[1742708955753,1.2823,2000.2,2000.1,1.3053]
[1742708956154,1.2823,2000.2,2000.1,2.30542]
[1742708956355,1.2823,2000.2,2000.1,1.3053]
[1742708958652,1.64835738,2000.4,2000.2,1.00005]
[1742708958860,0.6831,2000.4,2000.3,2.36862]
[1742708959058,0.6831,2000.4,2000.3,1.3686]
[1742708959464,1.9603,2000.4,2000.3,1.3686]
[1742708959663,2.96028,2000.4,2000.3,1.3686]
[1742708959862,1.9603,2000.4,2000.3,1.3686]
[1742708961359,0.99993,2000.5,2000.3,1.3686]
[1742708961360,2.52389925,2000.6,2000.3,2.36859]
[1742708961555,3.02768,2000.6,2000.4,0.6333]
[1742708961756,3.02768,2000.6,2000.4,1.961]
[1742708961757,4.88142736,2000.6,2000.4,1.961]
[1742708962062,3.88154736,2000.6,2000.4,1.961]
[1742708962255,3.99350811,2000.6,2000.5,1.3277]
[1742708962659,3.88124225,2000.6,2000.5,1.3277]
[1742708962860,3.02768,2000.6,2000.5,1.3277]
[1742708963366,2.0278,2000.6,2000.5,1.3277]
[1742708963557,1.3917,2000.6,2000.5,1.3277]
[1742708964362,2.53808923,2000.7,2000.5,1.3277]
[1742708964570,3.82128923,2000.7,2000.5,2.0124]
[1742708964762,1.85328923,2000.7,2000.6,2.26508]
[1742708965069,5.70664,2001.3,2000.6,2.26505]
[1742708965260,9.7258,2001.5,2000.5,0.6847]
[1742708965261,0.99978,2000.8,2000.7,1.2652]
[1742708965454,3.2078,2001.0,2000.7,1.2652]
[1742708965752,1.2832,2001.1,2000.9,0.99973]
[1742708965959,1.2832,2001.1,2001.0,1.2652]
[1742708966367,0.6607,2001.2,2001.0,1.2652]
[1742708966666,3.2078,2001.3,2001.0,1.2652]
[1742708966861,3.2078,2001.3,2001.0,2.26484]
[1742708967265,3.2078,2001.3,2001.1,1.2652]